bitfinex/quotes_ETHUSD_20230110
["timestamp","ask_amount","ask_price","bid_price","bid_amount"]
[1673358896496,1.12552444,1327.2,1327.1,3.79766064]
[1673358896709,2.81381109,1327.2,1327.1,3.79766064]
[1673358897054,1.12552444,1327.2,1327.1,3.79766064]
[1673358897426,1.12552444,1327.2,1327.1,11.33288064]
[1673358897642,1.12552444,1327.2,1327.1,11.39888064]
[1673358898097,1.12552444,1327.2,1327.1,14.77042767]
[1673358898487,1.12552444,1327.2,1327.1,7.23520767]
[1673358898751,1.12552444,1327.2,1327.1,3.86366064]
[1673358898936,1.12552444,1327.2,1327.1,3.79766064]
[1673358899878,1.12552444,1327.2,1327.1,11.33288064]
[1673358900090,1.12552444,1327.2,1327.1,18.93410064]
[1673358900272,1.12552444,1327.2,1327.1,26.46932064]
[1673358900906,1.12644474,1327.2,1327.1,26.46932064]
[1673358901166,1.79035329,1327.3,1327.1,29.64301357]
[1673358901320,1.72435329,1327.3,1327.1,26.46932064]
[1673358901529,1.12644931,1327.2,1327.1,26.46932064]
[1673358901878,1.1264457,1327.2,1327.1,26.46932064]
[1673358902089,1.72435329,1327.3,1327.1,26.46932064]
[1673358902314,1.12644807,1327.2,1327.1,26.46932064]
[1673358902509,1.72435329,1327.3,1327.1,29.51798555]
[1673358902680,3.97543514,1327.3,1327.1,3.86064351]
[1673358902892,3.97543514,1327.3,1327.1,3.79464351]
[1673358903102,1.12647118,1327.2,1327.1,3.79464351]
[1673358903320,1.12645627,1327.2,1327.1,3.79464351]
[1673358904006,1.12660492,1327.2,1327.1,3.79464351]
[1673358904350,1.12659485,1327.2,1327.1,3.79464351]
[1673358904790,2.20508965,1327.2,1327.0,0.066]
[1673358905003,1.12676265,1327.1,1327.0,3.79766064]
[1673358905220,2.8150493,1327.1,1327.0,3.79766064]
[1673358910366,2.8150493,1327.1,1326.9,16.97225463]
[1673358910578,2.8150493,1327.1,1326.9,7.79036404]
[1673358910833,2.8150493,1327.1,1326.9,22.86261404]
[1673358910995,2.8150493,1327.1,1326.9,25.66746527]
[1673358913248,2.8150493,1327.1,1326.9,18.13117527]
[1673358913407,2.8150493,1327.1,1326.9,15.32632404]
[1673358913617,2.8150493,1327.1,1326.9,18.13117527]
[1673358915831,1.12676265,1327.1,1326.9,18.13117527]
[1673358916267,2.8150493,1327.1,1326.9,25.66753527]
[1673358917559,2.8150493,1327.1,1326.9,33.20389527]
[1673358917718,1.12676265,1327.1,1326.9,33.20389527]
[1673358918914,1.12676265,1327.1,1326.9,29.27719187]
[1673358919293,1.12676265,1327.1,1326.9,21.74083187]
[1673358919503,2.8150493,1327.1,1326.9,21.74083187]
[1673358920400,2.8150493,1327.1,1326.9,18.93598064]
[1673358920973,2.8150493,1327.1,1326.9,21.74083187]
[1673358921256,2.8150493,1327.1,1326.9,18.93598064]
[1673358921635,2.8150493,1327.1,1326.9,26.47234064]
[1673358921851,2.8150493,1327.1,1326.9,29.27719187]
[1673358922237,2.8150493,1327.1,1326.9,26.47234064]
[1673358924089,2.8150493,1327.1,1326.9,18.93598064]
[1673358924399,1.68828665,1327.1,1326.9,18.93598064]
[1673358924554,1.12682434,1327.0,1326.9,18.93598064]
[1673358924764,1.68828665,1327.1,1326.9,28.34232206]
[1673358924972,2.81519278,1327.1,1326.9,29.27724701]
[1673358925174,2.81519278,1327.1,1326.9,29.27724609]
[1673358925827,2.20519278,1327.1,1326.9,29.27724609]
[1673358928279,1.12690613,1327.0,1326.9,26.47234064]
[1673358928493,1.1266263,1327.0,1326.9,28.34230972]
[1673358928838,1.07828665,1327.1,1326.9,28.34230972]
[1673358929038,1.12661096,1327.0,1326.9,26.47234064]
[1673358929225,1.12659114,1327.0,1326.9,28.34230675]
[1673358929439,1.12658755,1327.0,1326.9,28.34230675]
[1673358929647,1.07828665,1327.1,1326.9,28.34230924]
[1673358929879,2.20489879,1327.1,1326.9,29.27725525]
[1673358933119,2.20489879,1327.1,1326.9,26.47234064]
[1673358933677,1.07828665,1327.1,1326.9,26.47234064]
[1673358933836,1.12680126,1327.1,1326.9,29.27714719]
[1673358934048,12.63968485,1327.2,1326.9,30.40556383]
[1673358934272,1.12682226,1327.1,1326.9,30.40556383]
[1673358934493,9.8718,1327.2,1326.9,30.40556383]
[1673358934835,1.1268247,1327.1,1326.9,30.40556383]
[1673358935060,13.81312379,1327.2,1326.9,30.40556383]
[1673358935197,1.12682777,1327.1,1327.0,16.94063101]
[1673358935525,1.12682777,1327.1,1327.0,24.54242101]
[1673358935526,1.12682514,1327.1,1327.0,24.54242101]
[1673358935730,11.56204194,1327.2,1327.0,24.54242101]
[1673358935942,10.97991061,1327.2,1327.0,22.6726]
[1673358936273,9.28966867,1327.2,1327.0,22.6726]
[1673358936715,10.97991061,1327.2,1327.0,26.47026064]
[1673358939306,9.28966867,1327.2,1327.0,26.47026064]
[1673358939535,10.97991061,1327.2,1327.0,26.47026064]
[1673358940038,9.28998173,1327.2,1327.1,1.86967455]
[1673358940244,8.1628,1327.2,1327.1,15.07044]
[1673358940496,9.29011715,1327.2,1327.1,17.0061134]
[1673358940829,8.1628,1327.2,1327.1,15.13644]
[1673358940984,1.19332836,1327.2,1327.1,15.13644]
[1673358941190,1.12732836,1327.2,1327.1,27.81659296]
[1673358941442,1.12732836,1327.2,1327.1,41.22605076]
[1673358941629,1.30049442,1327.5,1327.1,48.15692526]
[1673358941848,1.23449442,1327.5,1327.4,22.60056]
[1673358942035,0.1070974,1327.5,1327.4,29.64693764]
[1673358942245,7.4e-06,1327.5,1327.4,37.14746484]
[1673358942453,1.30049136,1327.6,1327.4,37.14746484]
[1673358942677,0.10709434,1327.6,1327.5,3.79766064]
[1673358942882,1.23449136,1327.6,1327.5,26.39651064]
[1673358943124,1.23449136,1327.6,1327.5,30.3512854]
[1673358943447,0.10709434,1327.6,1327.5,30.3512854]
[1673358944971,0.10709434,1327.6,1327.5,35.98256272]
[1673358945426,0.10709434,1327.6,1327.5,36.21256272]
[1673358948922,0.10709434,1327.6,1327.5,32.2902854]
[1673358949492,4.46e-06,1327.7,1327.5,37.91356272]
[1673358949759,0.11762175,1327.9,1327.6,16.62193796]
[1673358949946,0.11762175,1327.9,1327.8,1.709]
[1673358950122,0.11762175,1327.9,1327.8,28.10041064]
[1673358950341,0.11762175,1327.9,1327.8,28.16641064]
[1673358952061,0.11762175,1327.9,1327.8,28.16441064]
[1673358952273,0.11762175,1327.9,1327.8,28.16641064]
[1673358952452,0.11762175,1327.9,1327.8,31.73646638]
[1673358952812,0.00062175,1327.9,1327.8,37.33246368]
[1673358953129,0.00062175,1327.9,1327.8,40.56046368]
[1673358953292,0.00062175,1327.9,1327.8,40.56246368]
[1673358953504,0.00062175,1327.9,1327.8,41.1293216]
[1673358954535,0.00062175,1327.9,1327.8,40.56246368]
[1673358955728,0.00062175,1327.9,1327.8,50.70166368]
[1673358956267,0.00062175,1327.9,1327.8,51.2685216]
[1673358957101,0.13024088,1328.0,1327.9,0.00137825]
[1673358957294,0.13024088,1328.0,1327.9,39.20307619]
[1673358957514,0.13024088,1328.0,1327.9,46.07682018]
[1673358957844,4.088e-05,1328.0,1327.9,46.6436781]
[1673358958055,4.088e-05,1328.0,1327.9,47.2086781]
[1673358959088,4.088e-05,1328.0,1327.9,46.64182018]
[1673358959261,0.14266303,1328.2,1328.0,2.5]
[1673358959476,0.14266303,1328.2,1328.1,24.70575794]
[1673358959797,0.14266303,1328.2,1328.1,35.30130794]
[1673358960008,0.14266303,1328.2,1328.1,27.77175794]
[1673358960340,0.14266303,1328.2,1328.1,14.62321064]
[1673358961154,0.14266303,1328.2,1328.1,14.39321064]
[1673358961360,0.14266303,1328.2,1328.1,18.00637048]
[1673358963791,0.14266303,1328.2,1328.1,10.47682048]
[1673358964314,0.14266303,1328.2,1328.1,18.00637048]
[1673358964731,0.14266303,1328.2,1328.1,10.47682048]
[1673358965412,0.14266303,1328.2,1328.1,6.86366064]
[1673358966010,0.14266303,1328.2,1328.1,14.39321064]
[1673358966876,0.14266303,1328.2,1328.1,21.92276064]
[1673358967199,0.14266303,1328.2,1328.1,6.86366064]
[1673358967200,1.26372966,1328.2,1328.1,6.86366064]
[1673358967411,8.79270966,1328.2,1328.1,3.86366064]
[1673358967574,8.85870966,1328.2,1328.1,3.79766064]
[1673358967778,10.68040326,1328.2,1328.1,3.79766064]
[1673358967995,19.91838326,1328.2,1328.1,3.79766064]
[1673358968689,35.97257412,1328.2,1328.0,0.066]
[1673358968832,32.55205773,1328.2,1327.9,0.00137825]
[1673358969089,3.41,1328.0,1327.9,0.00137825]
[1673358969295,19.06124,1328.0,1327.9,0.00137825]
[1673358969549,19.12724,1328.0,1327.9,0.00137825]
[1673358969715,11.59712,1328.0,1327.9,0.00137825]
[1673358969924,1.767,1328.0,1327.9,0.00137825]
[1673358970135,1.701,1328.0,1327.9,0.00137825]
[1673358970765,9.23112,1328.0,1327.9,0.00137825]
[1673358970975,16.82724,1328.0,1327.9,0.00137825]
[1673358971450,15.12624,1328.0,1327.9,0.00137825]
[1673358971624,22.65636,1328.0,1327.9,0.00137825]
[1673358972706,7.59612,1328.0,1327.9,0.00137825]
[1673358973922,7.59612,1328.0,1327.9,3.79903889]
[1673358974160,0.066,1328.0,1327.9,3.79903889]
[1673358974375,22.62575663,1328.1,1327.9,3.79903889]
[1673358974376,7.63178663,1328.1,1327.9,3.79903889]
[1673358974597,15.16172663,1328.1,1327.9,3.79903889]
[1673358975199,7.63178663,1328.1,1327.9,3.79903889]
[1673358980281,15.16133663,1328.1,1327.9,3.79903889]
[1673358981017,7.63161663,1328.1,1327.9,3.79903889]
[1673358982025,7.63161663,1328.1,1328.0,3.79766064]
[1673358982026,0.066,1328.1,1328.0,3.79766064]
[1673358982238,23.36151303,1328.2,1328.0,3.79766064]
[1673358982678,24.48891005,1328.2,1328.0,3.79766064]
[1673358983006,15.83204303,1328.2,1328.0,3.79766064]
[1673358983380,15.83204303,1328.2,1328.0,3.79558504]
[1673358983584,15.83204303,1328.2,1328.0,4.47053176]
[1673358983816,15.26724303,1328.2,1328.0,4.47053176]
[1673358984322,0.20866303,1328.2,1328.1,3.79766064]
[1673358984484,0.14266303,1328.2,1328.1,3.79766064]
[1673358984809,0.14266303,1328.2,1328.1,4.25152138]
[1673358986440,1e-08,1328.2,1328.1,4.25152138]
[1673358986744,1e-08,1328.2,1328.1,11.78107138]
[1673358986953,1e-08,1328.2,1328.1,11.84707138]
[1673358988103,1e-08,1328.2,1328.1,19.37662138]
[1673358988276,0.12046634,1328.3,1328.2,1.46699999]
[1673358988490,0.12046634,1328.3,1328.2,7.34902277]
[1673358988696,0.12046634,1328.3,1328.2,7.41502277]
[1673358989264,0.12046634,1328.3,1328.2,14.94400277]
[1673358990052,0.12046634,1328.3,1328.2,7.41502277]
[1673358992621,0.12046634,1328.3,1328.2,20.21300007]
[1673358992838,0.12046634,1328.3,1328.2,27.74198007]
[1673358993044,0.12046634,1328.3,1328.2,27.97198007]
[1673358993363,0.12046634,1328.3,1328.2,20.44300007]
[1673358993579,0.12046634,1328.3,1328.2,9.00402277]
[1673358993937,0.12046634,1328.3,1328.2,16.53300277]
[1673358994360,0.12046634,1328.3,1328.2,16.30300277]
[1673358994936,0.12046634,1328.3,1328.2,17.66200277]
[1673358995143,0.12046634,1328.3,1328.2,25.19098277]
[1673358996250,0.12046634,1328.3,1328.2,29.10098007]
[1673358996576,0.12046634,1328.3,1328.2,32.71996277]
[1673358997378,0.12046634,1328.3,1328.2,10.13302277]
[1673358997899,0.12046634,1328.3,1328.2,8.04866063]
[1673358997900,7.64887634,1328.3,1328.2,8.04866063]
[1673358998090,7.71487634,1328.3,1328.2,8.04866063]
[1673358998287,15.24328634,1328.3,1328.2,3.86566063]
[1673358998513,15.24328634,1328.3,1328.2,3.79966063]
[1673358998846,0.18646634,1328.3,1328.2,3.79966063]
[1673358999012,1.24786336,1328.3,1328.2,3.79966063]
[1673358999671,1.24986336,1328.3,1328.2,3.79966063]
[1673358999879,1.24786336,1328.3,1328.2,3.79966063]
[1673359001637,0.12046634,1328.3,1328.2,19.99713969]
[1673359002001,0.12046634,1328.3,1328.2,20.06313969]
[1673359007144,0.12046634,1328.3,1328.2,27.59011969]
[1673359007362,0.12046634,1328.3,1328.2,27.59211969]
[1673359008726,7.64887634,1328.3,1328.2,5.00517969]
[1673359008882,15.24328634,1328.3,1328.2,3.86566063]
[1673359009093,7.71487634,1328.3,1328.2,3.79966063]
[1673359009309,1.31386336,1328.3,1328.2,3.79966063]
[1673359009524,8.77627336,1328.3,1328.2,3.79966063]
[1673359009735,1.31386336,1328.3,1328.2,3.79966063]
[1673359009978,0.12046634,1328.3,1328.2,3.79966063]
[1673359010188,0.12046634,1328.3,1328.2,11.32864063]
[1673359010470,0.12046634,1328.3,1328.2,22.25137069]
[1673359011207,0.12046634,1328.3,1328.2,14.72239069]
[1673359013854,0.12046634,1328.3,1328.2,22.25137069]
[1673359014604,0.12046634,1328.3,1328.2,29.78035069]
[1673359017615,0.12046634,1328.3,1328.2,29.7783507]
[1673359020776,0.12046634,1328.3,1328.2,32.7783507]
[1673359021328,1.24786336,1328.3,1328.2,32.7783507]
[1673359022553,0.12046634,1328.3,1328.2,32.7783507]
[1673359023183,1.24786336,1328.3,1328.2,32.7783507]
[1673359023849,1.24986336,1328.3,1328.2,32.7763507]
[1673359024053,1.24786336,1328.3,1328.2,32.7783507]
[1673359025660,1.24786336,1328.3,1328.2,36.22650722]
[1673359025819,0.12046634,1328.3,1328.2,39.02868345]
[1673359026021,1.24786336,1328.3,1328.2,10.4214107]
[1673359026231,1.24786336,1328.3,1328.2,17.7203907]
[1673359026494,1.24878133,1328.3,1328.2,32.7783507]
[1673359026703,3.03126686,1328.4,1328.3,2.2491386]
[1673359027012,3.03126686,1328.4,1328.3,13.57520924]
[1673359027013,1.27502492,1328.4,1328.3,13.57520924]
[1673359027227,2.96526686,1328.4,1328.3,13.64120924]
[1673359027536,2.96526686,1328.4,1328.3,25.0654145]
[1673359028968,1.27502492,1328.4,1328.3,25.0654145]
[1673359029696,1.27502492,1328.4,1328.3,34.46181272]
[1673359030258,0.14670993,1328.4,1328.3,38.61172223]
[1673359030437,0.14670993,1328.4,1328.3,42.52171953]
[1673359031112,0.14670993,1328.4,1328.3,42.75171953]
[1673359031321,0.14670993,1328.4,1328.3,38.84172223]
[1673359032162,0.14670993,1328.4,1328.3,42.75171953]
[1673359032700,0.14670993,1328.4,1328.3,43.88069036]
[1673359032849,0.14670993,1328.4,1328.3,46.88069036]
[1673359033516,0.14670993,1328.4,1328.3,48.23069036]
[1673359036577,0.14670993,1328.4,1328.3,47.10171953]
[1673359036803,0.14670993,1328.4,1328.3,48.23069036]
[1673359036950,0.7300641,1328.5,1328.4,2.5]
[1673359037313,0.7300641,1328.5,1328.4,45.44302375]
[1673359037525,0.7300641,1328.5,1328.4,45.73902375]
[1673359037895,0.7300641,1328.5,1328.4,48.54056726]
[1673359038106,0.7300641,1328.5,1328.4,45.73902375]
[1673359038959,0.7300641,1328.5,1328.4,48.54046447]
[1673359039721,0.7300641,1328.5,1328.4,49.6694353]
[1673359039919,0.7300641,1328.5,1328.4,48.54046447]
[1673359040358,0.7300641,1328.5,1328.4,45.82946447]
[1673359040522,0.00038652,1328.6,1328.4,56.54446447]
[1673359040794,0.15938652,1328.7,1328.6,3.967]
[1673359041045,0.15938652,1328.7,1328.6,48.36266074]
[1673359041046,6.52e-06,1328.7,1328.6,48.36266074]
[1673359041214,0.85831898,1328.8,1328.7,2.5]
[1673359041419,0.85831898,1328.8,1328.7,35.99963529]
[1673359041631,0.85831898,1328.8,1328.7,42.09707601]
[1673359042080,0.85831898,1328.8,1328.7,39.29507106]
[1673359042293,0.85831898,1328.8,1328.7,39.58979477]
[1673359042489,0.85831898,1328.8,1328.7,43.48757265]
[1673359042945,0.85831898,1328.8,1328.7,45.35477386]
[1673359043272,0.85831898,1328.8,1328.7,43.48757265]
[1673359044724,8.98e-06,1328.8,1328.7,51.01372265]
[1673359044914,8.98e-06,1328.8,1328.7,43.48757265]
[1673359045363,8.98e-06,1328.8,1328.7,43.48989763]
[1673359045939,8.98e-06,1328.8,1328.7,43.47734685]
[1673359046831,0.16764898,1328.9,1328.8,24.04373102]
[1673359047070,0.16764898,1328.9,1328.8,41.39849655]
[1673359047283,0.16764898,1328.9,1328.8,41.62849655]
[1673359047451,0.17191597,1329.1,1328.9,25.07506]
[1673359047670,0.17191597,1329.1,1329.0,6.79766064]
[1673359047871,0.17191597,1329.1,1329.0,29.43701064]
[1673359048081,0.17191597,1329.1,1329.0,33.5191137]
[1673359048296,0.17191597,1329.1,1329.0,33.7491137]
[1673359049543,0.17191597,1329.1,1329.0,35.1081137]
[1673359051379,0.17191597,1329.1,1329.0,38.9933408]
[1673359053085,0.17191597,1329.1,1329.0,35.1081137]
[1673359053260,0.17191597,1329.1,1329.0,38.9933408]
[1673359053719,0.17191597,1329.1,1329.0,35.1081137]
[1673359054267,0.17191597,1329.1,1329.0,38.9933408]
[1673359056620,0.17191597,1329.1,1329.0,33.7491137]
[1673359056839,0.17191597,1329.1,1329.0,29.43701064]
[1673359057087,0.17191597,1329.1,1329.0,21.91256064]
[1673359057624,0.17191597,1329.1,1329.0,29.43701064]
[1673359057786,0.17191597,1329.1,1329.0,29.43501064]
[1673359057996,0.17191597,1329.1,1329.0,29.43701064]
[1673359058631,0.17191597,1329.1,1329.0,32.24276903]
[1673359058842,0.17191597,1329.1,1329.0,32.47276903]
[1673359059270,0.17191597,1329.1,1329.0,24.94831903]
[1673359059551,0.17191597,1329.1,1329.0,32.47276903]
[1673359060252,0.17191597,1329.1,1329.0,32.45692403]
[1673359060935,0.17191597,1329.1,1329.0,17.40802403]
[1673359062336,0.17191597,1329.1,1329.0,7.07781564]
[1673359062669,1.51691597,1329.1,1329.0,3.84781564]
[1673359062971,1.51691597,1329.1,1329.0,3.78181564]
[1673359063706,1.51691597,1329.1,1329.0,11.30626564]
[1673359063921,1.51691597,1329.1,1329.0,11.37226564]
[1673359064150,1.95819373,1329.1,1329.0,3.84781564]
[1673359064294,1.95819373,1329.1,1329.0,3.78181564]
[1673359066877,1.51691597,1329.1,1329.0,3.78181564]
[1673359069169,16.56467597,1329.1,1329.0,3.78181564]
[1673359069400,9.10679597,1329.1,1329.0,3.78181564]
[1673359069837,16.63067597,1329.1,1329.0,3.78181564]
[1673359070209,9.10679597,1329.1,1329.0,3.78181564]
[1673359070549,9.10679597,1329.1,1328.9,0.066]
[1673359070790,1.359,1329.0,1328.9,3.79766064]
[1673359072156,0.2386481,1329.0,1328.9,3.79766064]
[1673359076195,1.63371473,1329.0,1328.8,0.06799102]
[1673359076407,2.701,1328.9,1328.8,0.00199102]
[1673359076664,31.33267316,1328.9,1328.8,0.00199102]
[1673359076978,23.87365316,1328.9,1328.8,0.00199102]
[1673359077358,31.39867316,1328.9,1328.8,0.00199102]
[1673359077571,32.52698815,1328.9,1328.8,0.00199102]
[1673359078972,25.00196815,1328.9,1328.8,0.00199102]
[1673359079710,14.97694815,1328.9,1328.8,0.00199102]
[1673359080293,22.50196815,1328.9,1328.8,0.00199102]
[1673359080553,21.14796815,1328.9,1328.8,0.00199102]
[1673359080713,33.3956247,1328.9,1328.8,0.00199102]
[1673359080929,34.52831783,1328.9,1328.8,0.00199102]
[1673359081559,32.27723598,1328.9,1328.8,0.00199102]
[1673359081765,36.15426098,1328.9,1328.8,0.00199102]
[1673359082010,38.40548994,1328.9,1328.8,0.00199102]
[1673359082437,32.27723598,1328.9,1328.8,0.00199102]
[1673359082659,34.52687472,1328.9,1328.8,0.00199102]
[1673359083554,31.7058119,1328.9,1328.8,0.00199102]
[1673359084395,10.81769034,1328.9,1328.8,0.00199102]
[1673359084603,9.69236395,1328.9,1328.8,0.00199102]
[1673359084923,33.39275034,1328.9,1328.8,0.00199102]
[1673359085591,31.7058119,1328.9,1328.8,0.00199102]
[1673359086625,33.39156583,1328.9,1328.8,0.00199102]
[1673359086813,36.9418369,1328.9,1328.8,0.00199102]
[1673359087021,37.51326098,1328.9,1328.8,0.00199102]
[1673359087281,37.51326098,1328.9,1328.6,0.002]
[1673359087282,15.0523,1328.7,1328.6,0.002]
[1673359087478,22.23928388,1328.7,1328.6,0.002]
[1673359088323,29.76543388,1328.7,1328.6,0.002]
[1673359088672,11.90328163,1328.7,1328.6,0.002]
[1673359088813,13.02722253,1328.7,1328.6,0.002]
[1673359089152,11.90328163,1328.7,1328.6,0.002]
[1673359089542,13.02722253,1328.7,1328.6,0.002]
[1673359089798,20.55337253,1328.7,1328.6,0.002]
[1673359089984,19.42943163,1328.7,1328.6,0.002]
[1673359090416,20.55337253,1328.7,1328.6,0.002]
[1673359090809,20.58943916,1328.7,1328.6,0.002]
[1673359091223,13.06328916,1328.7,1328.6,0.002]
[1673359092923,20.58943916,1328.7,1328.6,0.002]
[1673359093240,19.46549826,1328.7,1328.6,0.002]
[1673359093589,20.58943916,1328.7,1328.6,0.002]
[1673359093762,28.11558916,1328.7,1328.6,0.002]
[1673359094607,20.58943916,1328.7,1328.6,0.002]
[1673359094861,28.11558916,1328.7,1328.6,0.002]
[1673359097241,29.80150051,1328.7,1328.6,0.002]
[1673359097670,28.11558916,1328.7,1328.6,0.002]
[1673359099972,29.80150051,1328.7,1328.6,0.002]
[1673359102448,22.27535051,1328.7,1328.6,0.002]
[1673359102637,5.53713916,1328.7,1328.6,0.002]
[1673359103062,13.06328916,1328.7,1328.6,0.002]
[1673359103570,3.84859826,1328.7,1328.6,0.002]
[1673359103762,2.75306663,1328.7,1328.6,0.002]
[1673359103967,2.75306663,1328.7,1328.6,1.087]
[1673359103968,1.39406663,1328.7,1328.6,1.087]
[1673359104179,18.6121409,1328.8,1328.6,27.46479064]
[1673359104388,0.066,1328.8,1328.6,27.53079064]
[1673359104654,1.6884409,1328.9,1328.7,3.79766064]
[1673359104865,0.5645,1328.9,1328.7,11.32361064]
[1673359105085,0.5645,1328.9,1328.7,3.86366064]
[1673359105234,0.5645,1328.9,1328.7,3.79766064]
[1673359105984,0.5645,1328.9,1328.7,5.0453977]
[1673359106210,26.42747225,1329.0,1328.7,5.1113977]
[1673359106921,26.99197225,1329.0,1328.7,5.1113977]
[1673359107455,1.1239409,1328.9,1328.7,5.1113977]
[1673359109682,8.6490409,1328.9,1328.7,5.1113977]
[1673359109899,8.7150409,1328.9,1328.7,3.86366064]
[1673359110119,8.7150409,1328.9,1328.7,3.79766064]
[1673359110757,1.1899409,1328.9,1328.7,3.79766064]
[1673359110929,1.1239409,1328.9,1328.7,3.79766064]
[1673359111678,1.1239409,1328.9,1328.7,3.79518889]
[1673359112103,2.80985225,1328.9,1328.7,3.79518889]
[1673359112362,1.1239409,1328.9,1328.7,3.79518889]
[1673359112532,11.94265225,1329.0,1328.7,12.46031078]
[1673359112852,11.94265225,1329.0,1328.7,27.57861078]
[1673359113672,1.1899409,1329.0,1328.8,6.29766064]
[1673359113893,1.1239409,1329.0,1328.8,6.87176889]
[1673359114326,1.1239409,1329.0,1328.8,3.86366064]
[1673359114486,8.6484209,1329.0,1328.8,3.79766064]
[1673359114701,8.7144209,1329.0,1328.8,3.79766064]
[1673359114912,10.40033225,1329.0,1328.8,3.79766064]
[1673359115165,1.1239409,1328.9,1328.8,3.79766064]
[1673359117390,2.80985225,1328.9,1328.8,3.79766064]
[1673359117698,1.1239409,1328.9,1328.8,3.79766064]
[1673359119212,1.1239409,1328.9,1328.7,0.066]
[1673359119418,1.1239409,1328.9,1328.7,3.79766064]
[1673359120493,2.80985225,1328.9,1328.7,3.79766064]
[1673359120740,1.1239409,1328.9,1328.7,3.79766064]
[1673359121363,1.1239409,1328.9,1328.7,22.38114642]
[1673359121576,2.87585225,1329.0,1328.7,29.97329642]
[1673359121763,2.80985225,1329.0,1328.8,3.79766064]
[1673359122310,2.80985225,1329.0,1328.8,18.84839064]
[1673359122527,1.1239409,1329.0,1328.8,21.91156328]
[1673359122839,1.1239409,1329.0,1328.8,6.86083328]
[1673359123010,2.80985225,1329.0,1328.8,6.86083328]
[1673359123900,2.80985225,1329.0,1328.8,14.38634328]
[1673359124417,2.80985225,1329.0,1328.8,11.38917064]
[1673359124571,2.80985225,1329.0,1328.8,3.86366064]
[1673359124781,2.80985225,1329.0,1328.8,3.79766064]
[1673359125053,1.1239409,1329.0,1328.9,3.79766064]
[1673359125204,0.17191597,1329.1,1329.0,23.69360325]
[1673359125408,0.17191597,1329.1,1329.0,23.16945157]
[1673359125620,0.17191597,1329.1,1329.0,30.69390157]
[1673359127436,0.90646164,1329.2,1329.0,32.05290157]
[1673359127775,0.90646164,1329.2,1329.1,26.36930064]
[1673359127993,0.90646164,1329.2,1329.1,26.43530064]
[1673359128206,0.90646164,1329.2,1329.1,30.3928648]
[1673359128827,0.90646164,1329.2,1329.1,15.3451048]
[1673359129143,0.90646164,1329.2,1329.1,7.8212248]
[1673359129300,0.90646164,1329.2,1329.1,22.8689848]
[1673359129776,0.90646164,1329.2,1329.1,30.3928648]
[1673359130351,0.90646164,1329.2,1329.1,7.8212248]
[1673359130565,0.90646164,1329.2,1329.1,3.86366064]
[1673359130823,0.90646164,1329.2,1329.1,3.79766064]
[1673359133709,2.03040254,1329.2,1329.1,3.79766064]
[1673359134295,0.90646164,1329.2,1329.1,3.79766064]
[1673359134818,15.95310164,1329.2,1329.1,3.79766064]
[1673359135101,16.01910164,1329.2,1329.1,3.79766064]
[1673359135263,9.61972254,1329.2,1329.1,3.79766064]
[1673359135488,17.14304254,1329.2,1329.1,3.79766064]
[1673359135634,9.61972254,1329.2,1329.1,3.79766064]
[1673359136003,17.14304254,1329.2,1329.1,3.79766064]
[1673359136312,9.61972254,1329.2,1329.1,3.79766064]
[1673359136684,9.61972254,1329.2,1329.0,8.71068325]
[1673359136685,2.09640254,1329.2,1329.0,8.71068325]
[1673359136896,2.03040254,1329.2,1329.0,20.03279389]
[1673359138515,2.03040254,1329.2,1329.0,12.50834389]
[1673359138684,3.71831389,1329.2,1329.0,12.50634389]
[1673359139034,3.71631389,1329.2,1329.0,4.98391389]
[1673359139239,3.71631389,1329.2,1329.0,4.91791389]
[1673359139663,2.03040254,1329.2,1329.0,4.91791389]
[1673359139835,3.71631389,1329.2,1329.0,4.91791389]
[1673359140045,5.57431389,1329.2,1329.0,4.91791389]
[1673359140256,3.95440254,1329.2,1329.0,12.44229389]
[1673359140465,7.41731389,1329.2,1329.0,12.50829389]
[1673359140675,7.55131389,1329.2,1329.0,12.50829389]
[1673359142638,2.0839409,1329.1,1329.0,4.98391389]
[1673359142790,4.6999409,1329.1,1329.0,4.91791389]
[1673359143044,6.22253092,1329.1,1329.0,1.12025325]
[1673359143352,8.53641272,1329.1,1329.0,1.12025325]
[1673359143511,6.28853092,1329.1,1329.0,1.12025325]
[1673359143721,5.74222482,1329.1,1329.0,4.91791389]
[1673359143983,4.05631347,1329.1,1329.0,4.91791389]
[1673359144159,3.99031347,1329.1,1329.0,4.91791389]
[1673359146187,3.99031347,1329.1,1329.0,12.44236389]
[1673359146504,3.99031347,1329.1,1329.0,12.50836389]
[1673359146727,3.99031347,1329.1,1329.0,20.03281389]
[1673359146882,2.865,1329.1,1329.0,20.03281389]
[1673359147088,2.865,1329.1,1329.0,23.70060264]
[1673359148184,2.865,1329.1,1329.0,31.22505264]
[1673359148764,2.8071,1329.1,1329.0,31.22505264]
[1673359149291,0.94470239,1329.1,1329.0,31.22505264]
[1673359149754,0.94155708,1329.1,1329.0,31.22505264]
[1673359150140,0.94155708,1329.1,1329.0,33.09189155]
[1673359150360,0.94155708,1329.1,1329.0,36.94257909]
[1673359150702,0.94155708,1329.1,1329.0,8.65170264]
[1673359150913,0.94155708,1329.1,1329.0,16.17615264]
[1673359151090,0.94155708,1329.1,1329.0,31.22505264]
[1673359151653,0.94155708,1329.1,1329.0,23.70060264]
[1673359152231,0.94155708,1329.1,1329.0,31.22505264]
[1673359154441,0.94155708,1329.1,1329.0,8.65170264]
[1673359154649,0.94155708,1329.1,1329.0,12.50836389]
[1673359155208,0.94155708,1329.1,1329.0,1.18625325]
[1673359155438,12.23181718,1329.1,1329.0,1.12025325]
[1673359155737,4.77393718,1329.1,1329.0,1.12025325]
[1673359155926,9.12065538,1329.1,1329.0,1.12025325]
[1673359156147,7.82765538,1329.1,1329.0,1.12025325]
[1673359156359,9.51356673,1329.1,1329.0,1.12025325]
[1673359156575,7.01356673,1329.1,1329.0,1.12025325]
[1673359157285,3.37887055,1329.1,1329.0,1.12025325]
[1673359157501,3.28987055,1329.1,1329.0,1.12025325]
[1673359157812,30.05199023,1329.1,1329.0,1.12025325]
[1673359158029,32.28202201,1329.1,1329.0,1.12025325]
[1673359158251,35.70355146,1329.1,1329.0,1.12025325]
[1673359158468,34.81466966,1329.1,1329.0,1.12025325]
[1673359158850,30.96472653,1329.1,1329.0,1.12025325]
[1673359159201,33.21713876,1329.1,1329.0,1.12025325]
[1673359160790,30.96472653,1329.1,1329.0,1.12025325]
[1673359164058,33.2172848,1329.1,1329.0,1.12025325]
[1673359164947,30.96472653,1329.1,1329.0,1.12025325]
[1673359165179,31.99322281,1329.1,1329.0,1.12025325]
[1673359165575,28.14366371,1329.1,1329.0,1.12025325]
[1673359165792,31.99246911,1329.1,1329.0,1.12025325]
[1673359165999,9.061,1329.0,1328.6,0.064]
[1673359166216,9.061,1329.0,1328.4,0.05115692]
[1673359166217,7.25560634,1328.7,1328.4,0.05115692]
[1673359166432,3.59651568,1328.5,1328.4,0.05115692]
[1673359166768,1.798,1328.5,1328.4,0.05115692]